[Event "Titled Tuesday Blitz September 27 Early 2022"]
[White "Seifert, Henryk"]
[Black "Haitin, Ilja"]
[WhiteFideId "1100963"]
[BlackFideId "4501764"]
[WhiteElo "2120"]
[BlackElo "2243"]
[Result "0-1"]
[Round "03"]
[TimeControl "180+1"]
[Date "2022.09.27"]
[WhiteClock "0:00:09"]
[BlackClock "0:00:07"]

1. e4 {[%clk 0:03:00]}  d6 {[%clk 0:02:57]} 2. d4 {[%clk 0:03:00]}  Nf6 {[%clk 0:02:57]} 3. Bd3 {[%clk 0:02:59]}  e5 {[%clk 0:02:56]} 4. c3 {[%clk 0:02:58]}  d5 {[%clk 0:02:56]} 5. dxe5 {[%clk 0:02:52]}  Nxe4 {[%clk 0:02:49]} 6. Bxe4 {[%clk 0:02:50]}  dxe4 {[%clk 0:02:49]} 7. Qxd8+ {[%clk 0:02:49]}  Kxd8 {[%clk 0:02:50]} 8. Bf4 {[%clk 0:02:42]}  Nd7 {[%clk 0:02:14]} 9. Nd2 {[%clk 0:02:42]}  Nc5 {[%clk 0:02:14]} 10. Bg5+ {[%clk 0:02:06]}  Be7 {[%clk 0:02:09]} 11. Bxe7+ {[%clk 0:02:00]}  Kxe7 {[%clk 0:02:10]} 12. Ne2 {[%clk 0:01:44]}  Nd3+ {[%clk 0:01:56]} 13. Kf1 {[%clk 0:01:44]}  e3 {[%clk 0:01:50]} 14. fxe3 {[%clk 0:01:38]}  Nxb2 {[%clk 0:01:50]} 15. Nf4 {[%clk 0:01:13]}  Rd8 {[%clk 0:01:36]} 16. Ke2 {[%clk 0:01:09]}  b6 {[%clk 0:01:15]} 17. Nb3 {[%clk 0:00:55]}  Ba6+ {[%clk 0:01:09]} 18. Kf2 {[%clk 0:00:49]}  Nd3+ {[%clk 0:00:56]} 19. Nxd3 {[%clk 0:00:46]}  Rxd3 {[%clk 0:00:57]} 20. Rac1 {[%clk 0:00:44]}  Rad8 {[%clk 0:00:53]} 21. Nd4 {[%clk 0:00:43]}  Bb7 {[%clk 0:00:21]} 22. Ke2 {[%clk 0:00:39]}  Be4 {[%clk 0:00:20]} 23. Rhf1 {[%clk 0:00:29]}  c5 {[%clk 0:00:19]} 24. Rf4 {[%clk 0:00:21]}  cxd4 {[%clk 0:00:15]} 25. Rxe4 {[%clk 0:00:21]}  dxc3 {[%clk 0:00:15]} 26. Rc2 {[%clk 0:00:19]}  Rd2+ {[%clk 0:00:13]} 27. Rxd2 {[%clk 0:00:18]}  Rxd2+ {[%clk 0:00:13]} 28. Kf3 {[%clk 0:00:19]}  b5 {[%clk 0:00:11]} 29. Rd4 {[%clk 0:00:11]}  Rxd4 {[%clk 0:00:10]} 30. exd4 {[%clk 0:00:12]}  c2 {[%clk 0:00:11]} 31. Ke4 {[%clk 0:00:12]}  c1=Q {[%clk 0:00:11]} 32. Kd5 {[%clk 0:00:11]}  Qc4+ {[%clk 0:00:08]} 33. Ke4 {[%clk 0:00:12]}  Ke6 {[%clk 0:00:08]} 34. a3 {[%clk 0:00:11]}  Qd5+ {[%clk 0:00:08]} 35. Ke3 {[%clk 0:00:10]}  a5 {[%clk 0:00:09]} 36. g3 {[%clk 0:00:10]}  b4 {[%clk 0:00:09]} 37. g4 {[%clk 0:00:09]}  bxa3 {[%clk 0:00:08]} 38. g5 {[%clk 0:00:10]}  a2 {[%clk 0:00:08]} 39. g6 {[%clk 0:00:11]}  hxg6 {[%clk 0:00:08]} 40. h4 {[%clk 0:00:10]}  a1=Q {[%clk 0:00:08]} 41. h5 {[%clk 0:00:09]}  Qaxd4+ {[%clk 0:00:07]} 0-1


[Site "https://www.chess.com"]

[Event "Titled Tuesday Blitz September 27 Early 2022"]
[White "Shandrygin, Nikita"]
[Black "Vargas, Mauricio"]
[WhiteFideId "24198668"]
[BlackFideId "4404572"]
[WhiteElo "2323"]
[BlackElo "2004"]
[Result "1-0"]
[Round "03"]
[TimeControl "180+1"]
[Date "2022.09.27"]
[WhiteClock "0:00:22"]
[BlackClock "0:00:10"]

1. e4 {[%clk 0:03:00]}  d5 {[%clk 0:02:55]} 2. exd5 {[%clk 0:03:00]}  Qxd5 {[%clk 0:02:56]} 3. Nf3 {[%clk 0:03:01]}  Qa5 {[%clk 0:02:57]} 4. Be2 {[%clk 0:03:01]}  c6 {[%clk 0:02:57]} 5. O-O {[%clk 0:03:01]}  Nf6 {[%clk 0:02:56]} 6. d4 {[%clk 0:03:00]}  h5 {[%clk 0:02:55]} 7. c4 {[%clk 0:02:58]}  Qc7 {[%clk 0:02:50]} 8. Nc3 {[%clk 0:02:55]}  Bg4 {[%clk 0:02:49]} 9. h3 {[%clk 0:02:54]}  Nbd7 {[%clk 0:02:48]} 10. Be3 {[%clk 0:02:23]}  Bxf3 {[%clk 0:02:46]} 11. Bxf3 {[%clk 0:02:22]}  Ng4 {[%clk 0:02:46]} 12. Bxg4 {[%clk 0:02:06]}  hxg4 {[%clk 0:02:43]} 13. Qxg4 {[%clk 0:02:07]}  Nf6 {[%clk 0:02:44]} 14. Qf3 {[%clk 0:02:02]}  e6 {[%clk 0:02:43]} 15. d5 {[%clk 0:01:56]}  Bd6 {[%clk 0:02:38]} 16. Rfd1 {[%clk 0:01:36]}  exd5 {[%clk 0:02:28]} 17. cxd5 {[%clk 0:01:34]}  O-O {[%clk 0:02:20]} 18. dxc6 {[%clk 0:01:23]}  bxc6 {[%clk 0:02:19]} 19. Rac1 {[%clk 0:01:12]}  Rab8 {[%clk 0:02:19]} 20. Bg5 {[%clk 0:00:55]}  Be5 {[%clk 0:01:51]} 21. Bxf6 {[%clk 0:00:52]}  Bxf6 {[%clk 0:01:50]} 22. Nd5 {[%clk 0:00:52]}  Qe5 {[%clk 0:01:38]} 23. Nxf6+ {[%clk 0:00:52]}  Qxf6 {[%clk 0:01:34]} 24. Qxf6 {[%clk 0:00:52]}  gxf6 {[%clk 0:01:33]} 25. b3 {[%clk 0:00:53]}  Rbc8 {[%clk 0:01:31]} 26. Rd6 {[%clk 0:00:52]}  Kg7 {[%clk 0:01:29]} 27. Rcxc6 {[%clk 0:00:48]}  Rfe8 {[%clk 0:01:23]} 28. Rxc8 {[%clk 0:00:37]}  Rxc8 {[%clk 0:01:22]} 29. Ra6 {[%clk 0:00:37]}  Rc7 {[%clk 0:01:18]} 30. Kh2 {[%clk 0:00:37]}  Kg6 {[%clk 0:01:11]} 31. Kg3 {[%clk 0:00:37]}  Kf5 {[%clk 0:01:11]} 32. h4 {[%clk 0:00:36]}  Rc3+ {[%clk 0:01:09]} 33. f3 {[%clk 0:00:36]}  Rc7 {[%clk 0:01:05]} 34. Ra5+ {[%clk 0:00:36]}  Ke6 {[%clk 0:01:05]} 35. h5 {[%clk 0:00:31]}  f5 {[%clk 0:00:54]} 36. h6 {[%clk 0:00:19]}  f6 {[%clk 0:00:53]} 37. Kf4 {[%clk 0:00:17]}  Rh7 {[%clk 0:00:51]} 38. Ra6+ {[%clk 0:00:16]}  Kd5 {[%clk 0:00:36]} 39. Rxf6 {[%clk 0:00:16]}  a5 {[%clk 0:00:32]} 40. Kxf5 {[%clk 0:00:17]}  a4 {[%clk 0:00:28]} 41. bxa4 {[%clk 0:00:16]}  Ra7 {[%clk 0:00:28]} 42. Kg6 {[%clk 0:00:16]}  Rxa4 {[%clk 0:00:27]} 43. g3 {[%clk 0:00:16]}  Rxa2 {[%clk 0:00:24]} 44. h7 {[%clk 0:00:17]}  Rh2 {[%clk 0:00:23]} 45. Rf4 {[%clk 0:00:17]}  Ke6 {[%clk 0:00:22]} 46. Rh4 {[%clk 0:00:17]}  Rg2 {[%clk 0:00:19]} 47. h8=Q {[%clk 0:00:17]}  Rxg3+ {[%clk 0:00:19]} 48. Rg4 {[%clk 0:00:18]}  Rxf3 {[%clk 0:00:16]} 49. Qe8+ {[%clk 0:00:18]}  Kd5 {[%clk 0:00:14]} 50. Qe4+ {[%clk 0:00:18]}  Kd6 {[%clk 0:00:14]} 51. Qxf3 {[%clk 0:00:19]}  Ke5 {[%clk 0:00:13]} 52. Re4+ {[%clk 0:00:19]}  Kd5 {[%clk 0:00:13]} 53. Qf5+ {[%clk 0:00:19]}  Kd6 {[%clk 0:00:13]} 54. Re6+ {[%clk 0:00:20]}  Kc7 {[%clk 0:00:12]} 55. Qf7+ {[%clk 0:00:21]}  Kb8 {[%clk 0:00:10]} 56. Re8# {[%clk 0:00:22]} 1-0


[Site "https://www.chess.com"]

[Event "Titled Tuesday Blitz September 27 Early 2022"]
[White "Shashikant, Kutwal"]
[Black "Jean Louis, Marckens"]
[WhiteFideId "5006520"]
[BlackFideId "11900270"]
[WhiteElo "2321"]
[BlackElo "2031"]
[Result "0-1"]
[Round "03"]
[TimeControl "180+1"]
[Date "2022.09.27"]
[WhiteClock "0:00:03"]
[BlackClock "0:00:58"]

1. e4 {[%clk 0:03:00]}  e6 {[%clk 0:02:55]} 2. d4 {[%clk 0:03:00]}  d5 {[%clk 0:02:55]} 3. Nc3 {[%clk 0:03:00]}  Nf6 {[%clk 0:02:53]} 4. e5 {[%clk 0:03:01]}  Nfd7 {[%clk 0:02:51]} 5. f4 {[%clk 0:03:01]}  c5 {[%clk 0:02:49]} 6. Nf3 {[%clk 0:03:02]}  cxd4 {[%clk 0:02:21]} 7. Nxd4 {[%clk 0:03:01]}  Nc6 {[%clk 0:02:21]} 8. Be3 {[%clk 0:03:00]}  Bc5 {[%clk 0:02:22]} 9. Qd2 {[%clk 0:02:44]}  a6 {[%clk 0:02:20]} 10. O-O-O {[%clk 0:02:04]}  Qa5 {[%clk 0:02:18]} 11. Kb1 {[%clk 0:01:35]}  Nxd4 {[%clk 0:01:42]} 12. Bxd4 {[%clk 0:01:33]}  Bxd4 {[%clk 0:01:42]} 13. Qxd4 {[%clk 0:01:32]}  Qc5 {[%clk 0:01:43]} 14. Qxc5 {[%clk 0:01:19]}  Nxc5 {[%clk 0:01:37]} 15. Bd3 {[%clk 0:01:20]}  Bd7 {[%clk 0:01:35]} 16. Ne2 {[%clk 0:01:17]}  Rc8 {[%clk 0:01:29]} 17. Nd4 {[%clk 0:01:16]}  O-O {[%clk 0:01:23]} 18. g3 {[%clk 0:00:33]}  Rc7 {[%clk 0:01:22]} 19. h4 {[%clk 0:00:31]}  Rfc8 {[%clk 0:01:21]} 20. g4 {[%clk 0:00:28]}  Nxd3 {[%clk 0:01:21]} 21. cxd3 {[%clk 0:00:27]}  g6 {[%clk 0:01:08]} 22. h5 {[%clk 0:00:21]}  Bb5 {[%clk 0:01:07]} 23. hxg6 {[%clk 0:00:09]}  hxg6 {[%clk 0:01:06]} 24. Nxb5 {[%clk 0:00:04]}  axb5 {[%clk 0:01:06]} 25. Rc1 {[%clk 0:00:05]}  Kg7 {[%clk 0:01:02]} 26. g5 {[%clk 0:00:03]}  Rc6 {[%clk 0:01:01]} 27. Rxc6 {[%clk 0:00:02]}  bxc6 {[%clk 0:01:01]} 28. Rc1 {[%clk 0:00:03]}  Kf8 {[%clk 0:01:00]} 29. Rc5 {[%clk 0:00:02]}  Ke7 {[%clk 0:01:00]} 30. Kc2 {[%clk 0:00:03]}  Kd7 {[%clk 0:01:00]} 31. Kb3 {[%clk 0:00:03]}  Kc7 {[%clk 0:01:00]} 32. a3 {[%clk 0:00:03]}  Kb6 {[%clk 0:01:01]} 33. Rc2 {[%clk 0:00:03]}  Rh8 {[%clk 0:01:01]} 34. Rf2 {[%clk 0:00:02]}  Rh3 {[%clk 0:01:01]} 35. Kc3 {[%clk 0:00:03]}  c5 {[%clk 0:01:01]} 36. b3 {[%clk 0:00:02]}  c4 {[%clk 0:01:00]} 37. bxc4 {[%clk 0:00:02]}  dxc4 {[%clk 0:00:59]} 38. Rd2 {[%clk 0:00:03]}  Kc5 {[%clk 0:00:59]} 39. Kc2 {[%clk 0:00:02]}  Kd4 {[%clk 0:00:58]} 40. dxc4+ {[%clk 0:00:02]}  Kxc4 {[%clk 0:00:58]} 41. Rd7 {[%clk 0:00:02]}  Rxa3 {[%clk 0:00:56]} 42. Rxf7 {[%clk 0:00:01]}  Ra2+ {[%clk 0:00:56]} 43. Kd1 {[%clk 0:00:01]}  Ra6 {[%clk 0:00:57]} 44. Rf6 {[%clk 0:00:01]}  b4 {[%clk 0:00:57]} 45. Rxg6 {[%clk 0:00:01]}  b3 {[%clk 0:00:58]} 46. Rg8 {[%clk 0:00:02]}  Rb6 {[%clk 0:00:58]} 47. Rc8+ {[%clk 0:00:03]}  Kd3 {[%clk 0:00:58]} 48. g6 {[%clk 0:00:03]}  b2 {[%clk 0:00:58]} 49. Rd8+ {[%clk 0:00:03]}  Ke3 {[%clk 0:00:58]} 0-1


[Site "https://www.chess.com"]

[Event "Titled Tuesday Blitz September 27 Early 2022"]
[White "Shivika, Rohilla"]
[Black "Perez Gormaz, Matias"]
[WhiteFideId "45015414"]
[BlackFideId "3406342"]
[WhiteElo "1605"]
[BlackElo "2341"]
[Result "0-1"]
[Round "03"]
[TimeControl "180+1"]
[Date "2022.09.27"]
[WhiteClock "0:00:16"]
[BlackClock "0:00:14"]

1. e4 {[%clk 0:03:00]}  c5 {[%clk 0:03:00]} 2. Nf3 {[%clk 0:02:59]}  e6 {[%clk 0:03:01]} 3. d4 {[%clk 0:02:58]}  cxd4 {[%clk 0:03:02]} 4. Nxd4 {[%clk 0:02:59]}  a6 {[%clk 0:03:03]} 5. c4 {[%clk 0:02:58]}  Nf6 {[%clk 0:03:02]} 6. Nc3 {[%clk 0:02:59]}  Qc7 {[%clk 0:03:02]} 7. a3 {[%clk 0:02:58]}  b6 {[%clk 0:03:02]} 8. Be3 {[%clk 0:02:57]}  Bb7 {[%clk 0:03:02]} 9. f3 {[%clk 0:02:57]}  h5 {[%clk 0:03:02]} 10. Be2 {[%clk 0:02:56]}  h4 {[%clk 0:03:02]} 11. Qd2 {[%clk 0:02:50]}  Bd6 {[%clk 0:02:48]} 12. Rc1 {[%clk 0:02:44]}  Bxh2 {[%clk 0:02:45]} 13. Na4 {[%clk 0:01:47]}  Bg3+ {[%clk 0:02:37]} 14. Kd1 {[%clk 0:01:46]}  d6 {[%clk 0:02:34]} 15. b4 {[%clk 0:01:41]}  Nbd7 {[%clk 0:02:33]} 16. Nb3 {[%clk 0:01:38]}  O-O {[%clk 0:02:25]} 17. Bg5 {[%clk 0:01:26]}  Bxe4 {[%clk 0:01:09]} 18. Bxh4 {[%clk 0:01:10]}  Bxh4 {[%clk 0:01:05]} 19. Rxh4 {[%clk 0:01:10]}  Bg6 {[%clk 0:01:04]} 20. Nb2 {[%clk 0:01:01]}  Rfd8 {[%clk 0:01:03]} 21. Nd3 {[%clk 0:01:01]}  Ne5 {[%clk 0:01:02]} 22. Nf4 {[%clk 0:00:58]}  Qe7 {[%clk 0:01:01]} 23. Nxg6 {[%clk 0:00:56]}  Nxg6 {[%clk 0:01:01]} 24. Rh1 {[%clk 0:00:56]}  e5 {[%clk 0:00:47]} 25. Ke1 {[%clk 0:00:53]}  a5 {[%clk 0:00:40]} 26. b5 {[%clk 0:00:51]}  a4 {[%clk 0:00:40]} 27. Na1 {[%clk 0:00:51]}  d5 {[%clk 0:00:40]} 28. Qg5 {[%clk 0:00:41]}  Qxa3 {[%clk 0:00:37]} 29. Nc2 {[%clk 0:00:38]}  Qc5 {[%clk 0:00:34]} 30. Ne3 {[%clk 0:00:37]}  Ne7 {[%clk 0:00:22]} 31. Nxd5 {[%clk 0:00:30]}  Nexd5 {[%clk 0:00:20]} 32. cxd5 {[%clk 0:00:30]}  Qb4+ {[%clk 0:00:20]} 33. Kf2 {[%clk 0:00:28]}  Qd4+ {[%clk 0:00:20]} 34. Kg3 {[%clk 0:00:28]}  Qf4+ {[%clk 0:00:17]} 35. Qxf4 {[%clk 0:00:27]}  exf4+ {[%clk 0:00:18]} 36. Kxf4 {[%clk 0:00:27]}  Nxd5+ {[%clk 0:00:19]} 37. Kg3 {[%clk 0:00:28]}  a3 {[%clk 0:00:19]} 38. Ra1 {[%clk 0:00:25]}  Nc3 {[%clk 0:00:18]} 39. Bc4 {[%clk 0:00:24]}  Rd4 {[%clk 0:00:17]} 40. Bb3 {[%clk 0:00:21]}  Rb4 {[%clk 0:00:18]} 41. Bc2 {[%clk 0:00:20]}  Rxb5 {[%clk 0:00:17]} 42. Bh7+ {[%clk 0:00:20]}  Kf8 {[%clk 0:00:16]} 43. Bd3 {[%clk 0:00:21]}  Rba5 {[%clk 0:00:15]} 44. Rh8+ {[%clk 0:00:20]}  Ke7 {[%clk 0:00:15]} 45. Rxa8 {[%clk 0:00:20]}  Rxa8 {[%clk 0:00:15]} 46. Kf2 {[%clk 0:00:21]}  b5 {[%clk 0:00:14]} 47. Ke3 {[%clk 0:00:22]}  b4 {[%clk 0:00:14]} 48. Kd2 {[%clk 0:00:23]}  Kd6 {[%clk 0:00:14]} 49. Kc2 {[%clk 0:00:23]}  Kc5 {[%clk 0:00:14]} 50. Kb3 {[%clk 0:00:23]}  g6 {[%clk 0:00:13]} 51. g4 {[%clk 0:00:23]}  a2 {[%clk 0:00:12]} 52. Bc4 {[%clk 0:00:18]}  Ra3+ {[%clk 0:00:11]} 53. Kb2 {[%clk 0:00:16]}  Kxc4 {[%clk 0:00:12]} 54. Rxa2 {[%clk 0:00:16]}  Rxa2+ {[%clk 0:00:12]} 55. Kc1 {[%clk 0:00:17]}  b3 {[%clk 0:00:13]} 56. f4 {[%clk 0:00:16]}  Rc2# {[%clk 0:00:14]} 0-1


[Site "https://www.chess.com"]

[Event "Titled Tuesday Blitz September 27 Early 2022"]
[White "Song, Julien"]
[Black "Wagner, Dennis"]
[WhiteFideId "659487"]
[BlackFideId "24650684"]
[WhiteElo "2225"]
[BlackElo "2355"]
[Result "0-1"]
[Round "03"]
[TimeControl "180+1"]
[Date "2022.09.27"]
[WhiteClock "0:00:02"]
[BlackClock "0:00:55"]

1. d4 {[%clk 0:03:00]}  Nf6 {[%clk 0:02:59]} 2. Bg5 {[%clk 0:03:01]}  e6 {[%clk 0:02:55]} 3. e4 {[%clk 0:03:01]}  h6 {[%clk 0:02:55]} 4. Bxf6 {[%clk 0:03:01]}  Qxf6 {[%clk 0:02:55]} 5. Nc3 {[%clk 0:03:02]}  d6 {[%clk 0:02:55]} 6. Qd2 {[%clk 0:03:01]}  c6 {[%clk 0:02:54]} 7. O-O-O {[%clk 0:02:57]}  Nd7 {[%clk 0:02:42]} 8. f4 {[%clk 0:02:52]}  e5 {[%clk 0:02:39]} 9. fxe5 {[%clk 0:02:46]}  dxe5 {[%clk 0:02:39]} 10. Nf3 {[%clk 0:02:43]}  exd4 {[%clk 0:02:36]} 11. Nxd4 {[%clk 0:01:49]}  Ne5 {[%clk 0:02:36]} 12. Nf5 {[%clk 0:01:44]}  g6 {[%clk 0:01:49]} 13. Ne3 {[%clk 0:01:20]}  Bd7 {[%clk 0:01:36]} 14. Be2 {[%clk 0:01:02]}  O-O-O {[%clk 0:01:35]} 15. Rhf1 {[%clk 0:01:01]}  Qg5 {[%clk 0:01:33]} 16. h4 {[%clk 0:00:42]}  Qxh4 {[%clk 0:01:25]} 17. Qd4 {[%clk 0:00:38]}  Qg5 {[%clk 0:01:15]} 18. Qxa7 {[%clk 0:00:35]}  Bc5 {[%clk 0:00:56]} 19. Qxc5 {[%clk 0:00:04]}  Nd3+ {[%clk 0:00:56]} 20. Bxd3 {[%clk 0:00:03]}  Qxc5 {[%clk 0:00:56]} 21. Rde1 {[%clk 0:00:02]}  Be6 {[%clk 0:00:55]} 0-1


[Site "https://www.chess.com"]

[Event "Titled Tuesday Blitz September 27 Early 2022"]
[White "Svane, Frederik"]
[Black "Manukyan, Sargis A."]
[WhiteFideId "12923044"]
[BlackFideId "13303970"]
[WhiteElo "2459"]
[BlackElo "2187"]
[Result "1-0"]
[Round "03"]
[TimeControl "180+1"]
[Date "2022.09.27"]
[WhiteClock "0:00:14"]
[BlackClock "0:00:12"]

1. c4 {[%clk 0:03:00]}  e5 {[%clk 0:02:58]} 2. d3 {[%clk 0:03:01]}  Nc6 {[%clk 0:02:58]} 3. Nc3 {[%clk 0:03:00]}  g6 {[%clk 0:02:59]} 4. g3 {[%clk 0:02:57]}  Bg7 {[%clk 0:02:59]} 5. Bg2 {[%clk 0:02:57]}  Nge7 {[%clk 0:02:59]} 6. Rb1 {[%clk 0:02:58]}  O-O {[%clk 0:02:59]} 7. b4 {[%clk 0:02:59]}  a6 {[%clk 0:02:59]} 8. a4 {[%clk 0:02:58]}  a5 {[%clk 0:02:56]} 9. b5 {[%clk 0:02:58]}  Nb4 {[%clk 0:02:56]} 10. Nf3 {[%clk 0:02:21]}  c5 {[%clk 0:02:56]} 11. bxc6 {[%clk 0:02:15]}  bxc6 {[%clk 0:02:51]} 12. O-O {[%clk 0:02:14]}  d5 {[%clk 0:02:51]} 13. Bd2 {[%clk 0:01:54]}  Be6 {[%clk 0:02:33]} 14. cxd5 {[%clk 0:01:53]}  cxd5 {[%clk 0:02:31]} 15. Nb5 {[%clk 0:01:52]}  h6 {[%clk 0:02:26]} 16. Bxb4 {[%clk 0:01:44]}  axb4 {[%clk 0:02:27]} 17. Rxb4 {[%clk 0:01:45]}  Qa5 {[%clk 0:02:25]} 18. Rb1 {[%clk 0:01:34]}  Qxa4 {[%clk 0:02:26]} 19. Nc7 {[%clk 0:01:33]}  Qxd1 {[%clk 0:02:24]} 20. Rfxd1 {[%clk 0:01:32]}  Ra2 {[%clk 0:02:24]} 21. Nxe6 {[%clk 0:01:30]}  fxe6 {[%clk 0:02:25]} 22. Rb7 {[%clk 0:01:26]}  Nc6 {[%clk 0:02:08]} 23. Rc1 {[%clk 0:01:23]}  Nd8 {[%clk 0:01:59]} 24. Rd7 {[%clk 0:01:11]}  Rxe2 {[%clk 0:01:59]} 25. Rcc7 {[%clk 0:01:10]}  Nf7 {[%clk 0:01:58]} 26. Bh3 {[%clk 0:01:09]}  e4 {[%clk 0:01:53]} 27. dxe4 {[%clk 0:00:45]}  dxe4 {[%clk 0:01:54]} 28. Nh4 {[%clk 0:00:43]}  e3 {[%clk 0:01:51]} 29. Nxg6 {[%clk 0:00:19]}  Rxf2 {[%clk 0:00:36]} 30. Nxf8 {[%clk 0:00:16]}  Ng5 {[%clk 0:00:18]} 31. Bxe6+ {[%clk 0:00:14]}  Kh8 {[%clk 0:00:12]} 32. Ng6+ {[%clk 0:00:14]}  Kh7 {[%clk 0:00:12]} 33. Rxg7# {[%clk 0:00:14]} 1-0


[Site "https://www.chess.com"]

[Event "Titled Tuesday Blitz September 27 Early 2022"]
[White "Szente Varga, Fruzsina"]
[Black "Luxama, Jacques Muller"]
[WhiteFideId "712264"]
[BlackFideId "11900113"]
[WhiteElo "1994"]
[BlackElo "1931"]
[Result "1-0"]
[Round "03"]
[TimeControl "180+1"]
[Date "2022.09.27"]
[WhiteClock "0:02:18"]
[BlackClock "0:00:03"]

1. e4 {[%clk 0:02:59]}  e5 {[%clk 0:02:59]} 2. d4 {[%clk 0:02:58]}  exd4 {[%clk 0:02:59]} 3. Qxd4 {[%clk 0:02:59]}  Nc6 {[%clk 0:03:00]} 4. Qe3 {[%clk 0:02:59]}  Nf6 {[%clk 0:02:59]} 5. Bd2 {[%clk 0:03:00]}  d6 {[%clk 0:02:34]} 6. Nc3 {[%clk 0:02:59]}  g6 {[%clk 0:02:33]} 7. O-O-O {[%clk 0:02:59]}  Bg7 {[%clk 0:02:33]} 8. f3 {[%clk 0:02:57]}  a6 {[%clk 0:02:31]} 9. h4 {[%clk 0:02:57]}  b5 {[%clk 0:02:13]} 10. Nd5 {[%clk 0:02:57]}  O-O {[%clk 0:02:10]} 11. Nxf6+ {[%clk 0:02:54]}  Qxf6 {[%clk 0:02:10]} 12. Bc3 {[%clk 0:02:54]}  Qe6 {[%clk 0:02:06]} 13. Bxg7 {[%clk 0:02:48]}  Kxg7 {[%clk 0:02:07]} 14. Kb1 {[%clk 0:02:47]}  Bd7 {[%clk 0:01:47]} 15. h5 {[%clk 0:02:47]}  Rh8 {[%clk 0:01:43]} 16. Nh3 {[%clk 0:02:40]}  Nb4 {[%clk 0:01:34]} 17. Qd4+ {[%clk 0:02:36]}  Qf6 {[%clk 0:01:21]} 18. Qxb4 {[%clk 0:02:36]}  a5 {[%clk 0:01:19]} 19. Qd2 {[%clk 0:02:36]}  b4 {[%clk 0:01:17]} 20. Nf4 {[%clk 0:02:32]}  b3 {[%clk 0:01:03]} 21. Nd5 {[%clk 0:02:31]}  bxa2+ {[%clk 0:00:50]} 22. Ka1 {[%clk 0:02:29]}  Qd8 {[%clk 0:00:24]} 23. Qc3+ {[%clk 0:02:28]}  f6 {[%clk 0:00:24]} 24. h6+ {[%clk 0:02:28]}  Kf7 {[%clk 0:00:18]} 25. Bc4 {[%clk 0:02:27]}  Be6 {[%clk 0:00:18]} 26. Nxc7 {[%clk 0:02:26]}  Bxc4 {[%clk 0:00:08]} 27. Qxc4+ {[%clk 0:02:27]}  Ke7 {[%clk 0:00:09]} 28. Qe6+ {[%clk 0:02:25]}  Kf8 {[%clk 0:00:09]} 29. Nd5 {[%clk 0:02:20]}  a4 {[%clk 0:00:03]} 30. Nxf6 {[%clk 0:02:18]} 1-0


[Site "https://www.chess.com"]

[Event "Titled Tuesday Blitz September 27 Early 2022"]
[White "Taboas Rodriguez, Daniel"]
[Black "Lorenzo De La Riva, Lazaro"]
[WhiteFideId "2208466"]
[BlackFideId "2268809"]
[WhiteElo "2429"]
[BlackElo "2325"]
[Result "1-0"]
[Round "03"]
[TimeControl "180+1"]
[Date "2022.09.27"]
[WhiteClock "0:00:48"]
[BlackClock "0:00:01"]

1. d4 {[%clk 0:03:00]}  Nf6 {[%clk 0:02:56]} 2. Nf3 {[%clk 0:03:00]}  d5 {[%clk 0:02:56]} 3. c4 {[%clk 0:03:00]}  e6 {[%clk 0:02:56]} 4. Bg5 {[%clk 0:03:00]}  Be7 {[%clk 0:02:56]} 5. e3 {[%clk 0:03:01]}  O-O {[%clk 0:02:56]} 6. Nc3 {[%clk 0:03:00]}  h6 {[%clk 0:02:56]} 7. Bh4 {[%clk 0:03:00]}  Ne4 {[%clk 0:02:56]} 8. Bxe7 {[%clk 0:03:00]}  Qxe7 {[%clk 0:02:54]} 9. Rc1 {[%clk 0:03:00]}  b6 {[%clk 0:02:17]} 10. cxd5 {[%clk 0:02:56]}  Nxc3 {[%clk 0:02:16]} 11. Rxc3 {[%clk 0:02:57]}  exd5 {[%clk 0:02:15]} 12. Qc2 {[%clk 0:02:57]}  c5 {[%clk 0:02:02]} 13. dxc5 {[%clk 0:02:57]}  bxc5 {[%clk 0:02:02]} 14. Rxc5 {[%clk 0:02:58]}  Bf5 {[%clk 0:02:03]} 15. Qc3 {[%clk 0:02:48]}  Nd7 {[%clk 0:01:56]} 16. Rc7 {[%clk 0:02:47]}  Qd6 {[%clk 0:01:35]} 17. Nd4 {[%clk 0:02:42]}  Be6 {[%clk 0:01:19]} 18. Bb5 {[%clk 0:02:41]}  Nb6 {[%clk 0:01:06]} 19. O-O {[%clk 0:02:40]}  Rfc8 {[%clk 0:01:04]} 20. Rc1 {[%clk 0:02:10]}  Nc4 {[%clk 0:01:04]} 21. Rxc8+ {[%clk 0:02:04]}  Rxc8 {[%clk 0:01:04]} 22. Bxc4 {[%clk 0:01:51]}  Rxc4 {[%clk 0:01:02]} 23. Qe1 {[%clk 0:01:47]}  Qc5 {[%clk 0:00:44]} 24. Rc3 {[%clk 0:01:45]}  Qb4 {[%clk 0:00:38]} 25. Qd2 {[%clk 0:01:43]}  a5 {[%clk 0:00:22]} 26. h4 {[%clk 0:01:43]}  Kf8 {[%clk 0:00:20]} 27. Qc2 {[%clk 0:01:39]}  Rxc3 {[%clk 0:00:17]} 28. Qxc3 {[%clk 0:01:39]}  Qxc3 {[%clk 0:00:17]} 29. bxc3 {[%clk 0:01:40]}  Ke7 {[%clk 0:00:18]} 30. Kf1 {[%clk 0:01:35]}  Kd6 {[%clk 0:00:17]} 31. Ke2 {[%clk 0:01:36]}  Bd7 {[%clk 0:00:17]} 32. Kd3 {[%clk 0:01:36]}  Kc5 {[%clk 0:00:16]} 33. Nb3+ {[%clk 0:01:35]}  Kb6 {[%clk 0:00:17]} 34. Kd4 {[%clk 0:01:35]}  Bc6 {[%clk 0:00:16]} 35. f4 {[%clk 0:01:22]}  Kb5 {[%clk 0:00:14]} 36. g3 {[%clk 0:01:17]}  a4 {[%clk 0:00:14]} 37. Na1 {[%clk 0:01:08]}  h5 {[%clk 0:00:15]} 38. Nc2 {[%clk 0:01:05]}  g6 {[%clk 0:00:09]} 39. a3 {[%clk 0:01:05]}  Bb7 {[%clk 0:00:06]} 40. Nb4 {[%clk 0:01:05]}  Kb6 {[%clk 0:00:06]} 41. Nxd5+ {[%clk 0:01:05]}  Kc6 {[%clk 0:00:05]} 42. c4 {[%clk 0:01:05]}  Kd6 {[%clk 0:00:05]} 43. c5+ {[%clk 0:01:03]}  Ke6 {[%clk 0:00:05]} 44. Nb4 {[%clk 0:01:00]}  Kf5 {[%clk 0:00:04]} 45. c6 {[%clk 0:01:00]}  Bc8 {[%clk 0:00:05]} 46. Nd5 {[%clk 0:00:54]}  Kg4 {[%clk 0:00:04]} 47. Nb6 {[%clk 0:00:50]}  Be6 {[%clk 0:00:03]} 48. Nxa4 {[%clk 0:00:50]}  Kxg3 {[%clk 0:00:03]} 49. Nc5 {[%clk 0:00:50]}  Bg4 {[%clk 0:00:01]} 50. a4 {[%clk 0:00:48]}  Kxh4 {[%clk 0:00:01]} 51. a5 {[%clk 0:00:48]} 1-0


[Site "https://www.chess.com"]